[Event "ESCC-65 2022"]
[Site "Lublin"]
[Date "2022.07.08"]
[Round "4.9"]
[White "Severcan, Sedat Sabri"]
[Black "Sokolowski, Ryszard"]
[Result "0-1"]
[ECO "E14"]
[WhiteElo "1849"]
[BlackElo "2050"]
[Annotator "NA RC"]
[PlyCount "110"]
[EventDate "2022.07.05"]
[EventType "swiss"]
[EventCountry "POL"]
[SourceTitle "playchess.com"]
[Source "ChessBase"]
[SourceQuality "1"]
[TimeControl "40/5400+30:1800+30"]

1. d4 {[%emt 0:00:13]} Nf6 {[%emt 0:00:40]} 2. c4 {[%emt 0:00:13]} e6 {[%emt 0:00:35]} 3. Nf3 {[%emt 0:00:29]} b6 {[%emt 0:00:33]} 4. e3 {[%emt 0:02:19]} Bb7 {[%emt 0:00:51]} 5. Be2 {[%emt 0:01:41]} Be7 {[%emt 0:03:17]} 6. O-O {[%emt 0:00:13]} O-O {[%emt 0:00:21]} 7. Nc3 d5 {[%emt 0:01:03]} 8. b3 {[%emt 0:02:11]} c5 {[%emt 0:02:53]} 9. Bb2 {[%emt 0:01:12]} Nc6 {[%emt 0:03:20]} 10. cxd5 {[%emt 0:01:35]} Nxd5 {[%emt 0:01:24]} 11. Nxd5 {[%emt 0:06:47]} Qxd5 {[%emt 0:05:37]} 12. dxc5 {[%emt 0:07:37]} bxc5 {[%emt 0:08:02]} 13. Qc1 {[%emt 0:05:30]} Rfd8 {[%emt 0:02:38]} 14. Bc3 {[%emt 0:02:50]} Qf5 {[%emt 0:04:55]} 15. Qb2 {[%emt 0:05:59]} Qg6 {[%emt 0:02:16]} 16. Rad1 {[%emt 0:18:57]} Rd5 {[%emt 0:05:28]} 17. Rxd5 {[%emt 0:06:35]} exd5 {[%emt 0:00:20]} 18. Rd1 {[%emt 0:01:32]} Rd8 {[%emt 0:01:38]} 19. Bd3 {[%emt 0:07:39]} Qh6 {[%emt 0:12:23]} 20. Be2 {[%emt 0:11:48]} Qg6 {[%emt 0:08:11]} 21. Bd3 {[%emt 0:00:34]} Qe6 {[%emt 0:01:49]} 22. Qb1 {[%emt 0:02:03]} g6 {[%emt 0:00:56]} 23. h3 {[%emt 0:03:14]} d4 {[%emt 0:03:20]} 24. Bc4 {[%emt 0:03:03]} Qf6 {[%emt 0:00:06]} 25. exd4 {[%emt 0:01:15]} Nxd4 {[%emt 0:00:30]} 26. Bxd4 {[%emt 0:01:07]} cxd4 {[%emt 0:01:14]} 27. Qd3 {[%emt 0:01:33]} Bxf3 {[%emt 0:04:23]} 28. Qxf3 {[%emt 0:00:16]} Qxf3 {[%emt 0:00:08]} 29. gxf3 {[%emt 0:00:01]} Bb4 {[%emt 0:00:23]} 30. Kg2 {[%emt 0:00:53]} Kf8 {[%emt 0:00:23]} 31. Kf1 {[%emt 0:01:03]} Bc3 {[%emt 0:00:22]} 32. Ke2 {[%emt 0:00:13]} Re8+ {[%emt 0:00:10]} 33. Kd3 {[%emt 0:00:19]} Re5 {[%emt 0:00:10]} 34. Rg1 {[%emt 0:01:26]} Ra5 {[%emt 0:01:26]} 35. a4 {[%emt 0:00:12]} Rh5 {[%emt 0:01:02]} 36. Rg3 {[%emt 0:00:11]} a5 {[%emt 0:00:20]} 37. f4 {[%emt 0:02:35]} Ke7 {[%emt 0:01:03]} 38. Ke4 {[%emt 0:00:48]} f6 {[%emt 0:00:15]} 39. Be2 {[%emt 0:00:40]} Rc5 {[%emt 0:02:00]} 40. Bc4 {[%emt 0:00:00]} Kd6 {[%emt 0:00:00]} 41. Rf3 {[%emt 0:03:42]} Rc7 {[%emt 0:04:40]} 42. f5 {[%emt 0:01:37]} Re7+ {[%emt 0:03:12]} 43. Kd3 {[%emt 0:00:08]} g5 {[%emt 0:00:54]} 44. h4 {[%emt 0:08:18]} g4 {[%emt 0:07:35]} 45. Rf4 {[%emt 0:02:57]} h5 {[%emt 0:00:14]} 46. Be6 {[%emt 0:00:30]} Rc7 {[%emt 0:00:34]} 47. Re4 {[%emt 0:00:31]} Rc5 {[%emt 0:00:44]} 48. Re2 {[%emt 0:08:39]} Re5 {[%emt 0:04:27]} 49. Re4 {[%emt 0:05:40]} Rc5 {[%emt 0:12:21]} 50. Re2 {[%emt 0:00:35]} Ba1 {[%emt 0:00:14]} 51. Ra2 {[%emt 0:00:21]} Rc1 {[%emt 0:03:13]} 52. Re2 {[%emt 0:03:41]} Rc3+ {[%emt 0:02:04]} 53. Kd2 {[%emt 0:00:53]} Rh3 {[%emt 0:00:16]} 54. Bf7 {[%emt 0:00:31]} Bc3+ {[%emt 0:00:02]} 55. Kd1 {[%emt 0:00:04]} d3 {[%emt 0:01:05]} 0-1

[Event "ESCC-65 2022"]
[Site "Lublin"]
[Date "2022.07.08"]
[Round "4.10"]
[White "Kasprzyk, Irena"]
[Black "Sciupokas, Arunas"]
[Result "0-1"]
[ECO "B02"]
[WhiteElo "2017"]
[BlackElo "1960"]
[Annotator "NA RC"]
[PlyCount "60"]
[EventDate "2022.07.05"]
[EventType "swiss"]
[EventCountry "POL"]
[SourceTitle "playchess.com"]
[Source "ChessBase"]
[SourceQuality "1"]
[TimeControl "40/5400+30:1800+30"]

1. e4 {[%emt 0:00:30]} Nf6 {[%emt 0:00:10]} 2. e5 {[%emt 0:00:17]} Nd5 {[%emt 0:00:05]} 3. Nc3 {[%emt 0:00:09]} Nxc3 {[%emt 0:03:10]} 4. bxc3 {[%emt 0:00:12]} d6 {[%emt 0:01:11]} 5. f4 {[%emt 0:01:43]} g6 {[%emt 0:14:03]} 6. d4 {[%emt 0:00:39]} Bg7 {[%emt 0:01:04]} 7. Nf3 {[%emt 0:01:01]} O-O {[%emt 0:04:19]} 8. Bd3 {[%emt 0:00:27]} c5 {[%emt 0:04:09]} 9. O-O {[%emt 0:01:10]} dxe5 {[%emt 0:06:16]} 10. fxe5 {[%emt 0:00:24]} Nc6 {[%emt 0:04:00]} 11. Be3 {[%emt 0:00:33]} Qa5 {[%emt 0:05:54]} 12. Qe1 {[%emt 0:01:01]} cxd4 {[%emt 0:08:43]} 13. cxd4 {[%emt 0:00:25]} Qxe1 {[%emt 0:00:39]} 14. Rfxe1 {[%emt 0:00:44]} Nb4 {[%emt 0:04:33]} 15. Be4 {[%emt 0:00:35]} Bf5 {[%emt 0:00:36]} 16. Bxf5 {[%emt 0:01:11]} gxf5 {[%emt 0:00:02]} 17. Rec1 {[%emt 0:00:30]} f6 {[%emt 0:11:44]} 18. Bd2 {[%emt 0:04:09]} Nc6 {[%emt 0:01:39]} 19. e6 {[%emt 0:01:53]} Rfd8 {[%emt 0:03:59]} 20. c3 {[%emt 0:01:23]} b5 {[%emt 0:01:12]} 21. Nh4 {[%emt 0:00:27]} Rd6 {[%emt 0:12:46]} 22. Nxf5 {[%emt 0:02:56]} Rxe6 {[%emt 0:00:32]} 23. d5 {[%emt 0:01:58]} Re2 {[%emt 0:00:13]} 24. dxc6 {[%emt 0:00:17]} Rxd2 {[%emt 0:00:03]} 25. Nxe7+ {[%emt 0:00:18]} Kf7 {[%emt 0:00:38]} 26. Re1 {[%emt 0:00:38]} Bf8 {[%emt 0:00:59]} 27. Nf5 {[%emt 0:00:34]} Rc8 {[%emt 0:01:33]} 28. Nd4 {[%emt 0:01:09]} Bc5 {[%emt 0:00:47]} 29. Rab1 {[%emt 0:01:22]} b4 {[%emt 0:02:29]} 30. Rbd1 {[%emt 0:00:20]} bxc3 {[%emt 0:01:06]} 0-1

[Event "ESCC-65 2022"]
[Site "Lublin"]
[Date "2022.07.08"]
[Round "4.11"]
[White "Gasik, Piotr"]
[Black "Berkley, Stephen W"]
[Result "1-0"]
[ECO "A27"]
[WhiteElo "1990"]
[BlackElo "1525"]
[Annotator "NA RC"]
[PlyCount "54"]
[EventDate "2022.07.05"]
[EventType "swiss"]
[EventCountry "POL"]
[SourceTitle "playchess.com"]
[Source "ChessBase"]
[SourceQuality "1"]
[TimeControl "40/5400+30:1800+30"]

1. c4 {[%emt 0:00:03]} Nc6 {[%emt 0:00:38]} 2. Nc3 {[%emt 0:02:39]} e5 {[%emt 0:00:24]} 3. Nf3 {[%emt 0:00:17]} Bc5 {[%emt 0:00:25]} 4. Nxe5 {[%emt 0:01:17]} Nxe5 {[%emt 0:02:07]} 5. d4 {[%emt 0:00:09]} d6 {[%emt 0:08:36]} 6. dxc5 {[%emt 0:01:31]} dxc5 {[%emt 0:01:50]} 7. Qxd8+ {[%emt 0:01:02]} Kxd8 {[%emt 0:00:07]} 8. b3 {[%emt 0:02:29]} c6 {[%emt 0:11:41]} 9. Bf4 {[%emt 0:01:56]} Ng6 {[%emt 0:01:03]} 10. Rd1+ {[%emt 0:03:30]} Ke8 {[%emt 0:00:43]} 11. Be3 {[%emt 0:00:48]} Bf5 {[%emt 0:07:31]} 12. Bxc5 {[%emt 0:01:56]} Nf6 {[%emt 0:05:38]} 13. f3 {[%emt 0:01:51]} b6 {[%emt 0:01:26]} 14. Ba3 {[%emt 0:01:54]} Rd8 {[%emt 0:01:04]} 15. Rxd8+ {[%emt 0:04:17]} Kxd8 {[%emt 0:00:08]} 16. e4 {[%emt 0:00:06]} Bc8 {[%emt 0:00:39]} 17. g3 {[%emt 0:02:14]} Re8 {[%emt 0:02:18]} 18. Bg2 {[%emt 0:01:04]} Bb7 {[%emt 0:00:49]} 19. Ke2 {[%emt 0:00:55]} Kc7 {[%emt 0:01:18]} 20. Rd1 {[%emt 0:00:31]} Rd8 {[%emt 0:01:21]} 21. Rxd8 {[%emt 0:02:21]} Kxd8 {[%emt 0:00:04]} 22. Ke3 {[%emt 0:01:50]} Nd7 {[%emt 0:02:30]} 23. f4 {[%emt 0:02:32]} f6 {[%emt 0:00:54]} 24. Ne2 {[%emt 0:03:19]} Ngf8 {[%emt 0:01:35]} 25. Bh3 {[%emt 0:00:57]} Nc5 {[%emt 0:00:52]} 26. Bxc5 {[%emt 0:03:57]} bxc5 {[%emt 0:00:05]} 27. Nc1 {[%emt 0:00:07]} Ke8 1-0

[Event "ESCC-65 2022"]
[Site "Lublin"]
[Date "2022.07.08"]
[Round "4.13"]
[White "Chubar, Vladimir"]
[Black "Stokes, Michael"]
[Result "1/2-1/2"]
[ECO "A48"]
[WhiteElo "1809"]
[BlackElo "2024"]
[Annotator "NA RC"]
[PlyCount "141"]
[EventDate "2022.07.05"]
[EventType "swiss"]
[EventCountry "POL"]
[SourceTitle "playchess.com"]
[Source "ChessBase"]
[SourceQuality "1"]
[TimeControl "40/5400+30:1800+30"]

1. d4 {[%emt 0:00:09]} Nf6 {[%emt 0:00:04]} 2. Nf3 {[%emt 0:00:18]} g6 {[%emt 0:00:05]} 3. Bg5 {[%emt 0:00:46]} Bg7 {[%emt 0:00:08]} 4. Nbd2 {[%emt 0:00:31]} O-O {[%emt 0:00:10]} 5. e4 {[%emt 0:00:19]} h6 {[%emt 0:01:45]} 6. Bh4 {[%emt 0:00:28]} d5 {[%emt 0:00:20]} 7. Bxf6 {[%emt 0:01:40]} exf6 {[%emt 0:00:35]} 8. exd5 {[%emt 0:04:47]} Qxd5 {[%emt 0:02:36]} 9. Be2 {[%emt 0:01:00]} Nc6 {[%emt 0:01:07]} 10. c3 {[%emt 0:00:56]} Bg4 {[%emt 0:01:59]} 11. O-O {[%emt 0:01:06]} Rfe8 {[%emt 0:00:35]} 12. h3 {[%emt 0:01:31]} Bd7 {[%emt 0:06:32]} 13. Re1 {[%emt 0:06:10]} Rad8 {[%emt 0:02:00]} 14. Qb3 {[%emt 0:05:57]} Qxb3 {[%emt 0:07:02]} 15. axb3 {[%emt 0:01:55]} a6 {[%emt 0:02:00]} 16. b4 {[%emt 0:01:07]} g5 {[%emt 0:03:39]} 17. Nb3 {[%emt 0:03:14]} Ne7 {[%emt 0:01:54]} 18. Nc5 {[%emt 0:03:45]} Bc8 {[%emt 0:06:44]} 19. Nd2 {[%emt 0:05:07]} f5 {[%emt 0:03:04]} 20. b5 {[%emt 0:06:11]} axb5 {[%emt 0:05:44]} 21. Bxb5 {[%emt 0:00:27]} c6 {[%emt 0:00:19]} 22. Bc4 {[%emt 0:00:49]} b5 {[%emt 0:08:43]} 23. Bb3 {[%emt 0:01:06]} b4 {[%emt 0:00:36]} 24. Nf3 {[%emt 0:02:55]} Kf8 {[%emt 0:04:48]} 25. Ne5 {[%emt 0:01:49]} Bxe5 {[%emt 0:00:36]} 26. Rxe5 {[%emt 0:00:22]} Ng6 {[%emt 0:04:47]} 27. Rxe8+ {[%emt 0:02:31]} Kxe8 {[%emt 0:00:30]} 28. Ra7 {[%emt 0:03:20]} Ne7 {[%emt 0:00:07]} 29. f4 {[%emt 0:02:48]} gxf4 {[%emt 0:02:16]} 30. Kf2 {[%emt 0:00:31]} Rd6 {[%emt 0:01:50]} 31. Nd3 {[%emt 0:02:27]} bxc3 {[%emt 0:01:25]} 32. bxc3 {[%emt 0:00:09]} Be6 {[%emt 0:02:49]} 33. Ra8+ {[%emt 0:01:00]} Rd8 {[%emt 0:00:54]} 34. Rxd8+ {[%emt 0:01:57]} Kxd8 {[%emt 0:00:06]} 35. Bxe6 {[%emt 0:00:41]} fxe6 {[%emt 0:00:07]} 36. Nxf4 {[%emt 0:00:06]} Kd7 {[%emt 0:00:21]} 37. Kg3 {[%emt 0:00:53]} Ng8 {[%emt 0:00:45]} 38. Nh5 {[%emt 0:02:23]} Kd6 {[%emt 0:00:21]} 39. Kf4 {[%emt 0:01:37]} Kd5 {[%emt 0:01:05]} 40. Ke3 {[%emt 0:00:00]} e5 {[%emt 0:00:00]} 41. c4+ {[%emt 0:03:31]} Kxc4 {[%emt 0:03:07]} 42. dxe5 {[%emt 0:00:06]} Kd5 {[%emt 0:00:16]} 43. Kf4 {[%emt 0:00:12]} Ne7 {[%emt 0:01:39]} 44. Ng7 {[%emt 0:05:23]} c5 {[%emt 0:02:34]} 45. Nxf5 {[%emt 0:01:55]} Ng6+ {[%emt 0:02:29]} 46. Ke3 {[%emt 0:00:57]} Nxe5 {[%emt 0:05:56]} 47. Nxh6 {[%emt 0:00:08]} c4 {[%emt 0:00:18]} 48. Nf5 {[%emt 0:02:19]} c3 {[%emt 0:01:02]} 49. Nd4 {[%emt 0:02:34]} Ng6 {[%emt 0:08:00]} 50. g3 {[%emt 0:01:54]} Ne5 {[%emt 0:03:48]} 51. Ne2 {[%emt 0:02:00]} c2 {[%emt 0:01:39]} 52. Kd2 {[%emt 0:00:34]} Ke4 {[%emt 0:00:49]} 53. Kxc2 {[%emt 0:00:22]} Kf3 {[%emt 0:01:03]} 54. Kd2 {[%emt 0:01:40]} Kf2 {[%emt 0:02:04]} 55. h4 {[%emt 0:01:25]} Kf3 {[%emt 0:03:32]} 56. Ke1 {[%emt 0:01:28]} Kg4 {[%emt 0:01:08]} 57. Kf2 {[%emt 0:00:20]} Ng6 {[%emt 0:02:06]} 58. h5 {[%emt 0:02:15]} Kxh5 {[%emt 0:00:07]} 59. Nf4+ {[%emt 0:00:06]} Nxf4 {[%emt 0:00:08]} 60. gxf4 {[%emt 0:00:06]} Kg4 {[%emt 0:00:07]} 61. Ke3 {[%emt 0:01:28]} Kf5 {[%emt 0:00:02]} 62. Kf3 {[%emt 0:00:07]} Kf6 {[%emt 0:00:11]} 63. Ke4 {[%emt 0:00:09]} Ke6 {[%emt 0:00:06]} 64. f5+ {[%emt 0:00:06]} Kf6 {[%emt 0:00:04]} 65. Kf4 {[%emt 0:00:06]} Kf7 {[%emt 0:00:04]} 66. Ke5 {[%emt 0:00:09]} Ke7 {[%emt 0:00:07]} 67. f6+ {[%emt 0:00:05]} Kf7 {[%emt 0:00:06]} 68. Kf5 {[%emt 0:00:09]} Kf8 {[%emt 0:00:06]} 69. Ke6 {[%emt 0:00:06]} Ke8 {[%emt 0:00:05]} 70. f7+ {[%emt 0:00:04]} Kf8 {[%emt 0:00:06]} 71. Kf6 {[%emt 0:00:02]} 1/2-1/2

[Event "ESCC-65 2022"]
[Site "Lublin"]
[Date "2022.07.08"]
[Round "4.14"]
[White "Olszowski, Andrzej"]
[Black "Scowen, Roger S"]
[Result "1/2-1/2"]
[ECO "A04"]
[WhiteElo "1600"]
[BlackElo "1864"]
[Annotator "NA RC"]
[PlyCount "38"]
[EventDate "2022.07.05"]
[EventType "swiss"]
[EventCountry "POL"]
[SourceTitle "playchess.com"]
[Source "ChessBase"]
[SourceQuality "1"]
[TimeControl "40/5400+30:1800+30"]

1. Nf3 {[%emt 0:01:36]} e6 {[%emt 0:00:19]} 2. b3 {[%emt 0:00:53]} f5 {[%emt 0:00:10]} 3. Bb2 {[%emt 0:00:22]} Nf6 {[%emt 0:00:07]} 4. e3 {[%emt 0:02:18]} Be7 {[%emt 0:01:07]} 5. d4 {[%emt 0:00:52]} d5 6. Nbd2 {[%emt 0:00:16]} c6 {[%emt 0:01:23]} 7. Bd3 {[%emt 0:01:38]} Ne4 {[%emt 0:02:31]} 8. O-O {[%emt 0:04:19]} O-O {[%emt 0:02:37]} 9. Ne5 {[%emt 0:01:18]} Nxd2 10. Qxd2 {[%emt 0:00:26]} Nd7 {[%emt 0:01:37]} 11. f4 {[%emt 0:09:16]} Nxe5 {[%emt 0:02:04]} 12. fxe5 {[%emt 0:00:14]} Bd7 {[%emt 0:19:55]} 13. c4 {[%emt 0:11:09]} Rc8 {[%emt 0:08:18]} 14. Bc3 {[%emt 0:08:40]} b6 {[%emt 0:05:50]} 15. Rac1 {[%emt 0:10:22]} Qc7 {[%emt 0:07:12]} 16. Rc2 {[%emt 0:06:11]} Qb7 {[%emt 0:08:54]} 17. Qe2 {[%emt 0:00:38]} b5 {[%emt 0:02:18]} 18. c5 {[%emt 0:02:24]} Be8 {[%emt 0:03:10]} 19. b4 {[%emt 0:06:36]} Bg5 {[%emt 0:02:25]} 1/2-1/2

[Event "ESCC-65 2022"]
[Site "Lublin"]
[Date "2022.07.08"]
[Round "4.15"]
[White "Sosnowska, Elzbieta"]
[Black "Patola, Eero"]
[Result "1/2-1/2"]
[ECO "B01"]
[WhiteElo "1726"]
[BlackElo "1810"]
[Annotator "NA"]
[PlyCount "128"]
[EventDate "2022.07.05"]
[EventType "swiss"]
[EventCountry "POL"]
[SourceTitle "playchess.com"]
[Source "ChessBase"]
[SourceQuality "1"]
[TimeControl "40/5400+30:1800+30"]

1. e4 {[%emt 0:00:03]} d5 {[%emt 0:04:37]} 2. exd5 {[%emt 0:00:30]} Nf6 {[%emt 0:00:12]} 3. d4 {[%emt 0:00:12]} Nxd5 {[%emt 0:00:13]} 4. Nf3 {[%emt 0:00:28]} g6 {[%emt 0:00:36]} 5. c3 {[%emt 0:00:14]} Bg7 {[%emt 0:00:19]} 6. Bd3 {[%emt 0:00:11]} O-O {[%emt 0:02:10]} 7. O-O {[%emt 0:00:07]} c6 {[%emt 0:01:07]} 8. Re1 {[%emt 0:00:19]} Re8 {[%emt 0:01:11]} 9. Bg5 {[%emt 0:01:34]} h6 {[%emt 0:01:10]} 10. Bh4 {[%emt 0:01:13]} Nf4 {[%emt 0:09:58]} 11. Bc2 {[%emt 0:00:34]} Na6 {[%emt 0:06:08]} 12. Bg3 {[%emt 0:03:07]} Nh5 {[%emt 0:03:57]} 13. Be5 {[%emt 0:01:02]} Nf6 {[%emt 0:02:05]} 14. Nbd2 {[%emt 0:00:31]} Be6 {[%emt 0:03:07]} 15. Qe2 {[%emt 0:08:00]} Bg4 {[%emt 0:08:57]} 16. h3 {[%emt 0:08:21]} Bxf3 {[%emt 0:00:27]} 17. Nxf3 {[%emt 0:00:26]} Nb8 {[%emt 0:06:58]} 18. Rad1 {[%emt 0:09:17]} Nbd7 {[%emt 0:00:26]} 19. Bh2 {[%emt 0:00:24]} Qb6 {[%emt 0:03:59]} 20. Bb1 {[%emt 0:06:17]} a5 {[%emt 0:02:24]} 21. Rd2 {[%emt 0:08:35]} a4 {[%emt 0:04:19]} 22. Bd3 {[%emt 0:03:56]} Qd8 {[%emt 0:03:13]} 23. c4 {[%emt 0:04:14]} e6 {[%emt 0:02:09]} 24. Bc2 {[%emt 0:00:50]} Qa5 {[%emt 0:01:22]} 25. Bd6 {[%emt 0:01:41]} b5 {[%emt 0:02:19]} 26. b4 {[%emt 0:02:16]} axb3 {[%emt 0:01:41]} 27. axb3 {[%emt 0:00:02]} bxc4 {[%emt 0:02:41]} 28. bxc4 {[%emt 0:00:29]} c5 {[%emt 0:03:39]} 29. dxc5 {[%emt 0:00:43]} Nxc5 {[%emt 0:00:41]} 30. Red1 {[%emt 0:09:20]} Rac8 {[%emt 0:02:35]} 31. Be5 {[%emt 0:03:02]} Rcd8 {[%emt 0:05:26]} 32. Ra1 {[%emt 0:03:12]} Rxd2 {[%emt 0:03:17]} 33. Nxd2 {[%emt 0:00:26]} Qd8 {[%emt 0:01:15]} 34. Nf3 {[%emt 0:00:56]} Qc8 {[%emt 0:01:32]} 35. Rb1 {[%emt 0:01:11]} Qc6 {[%emt 0:00:38]} 36. Nd4 {[%emt 0:01:19]} Qa8 {[%emt 0:02:10]} 37. Nb5 {[%emt 0:00:43]} Qc6 {[%emt 0:03:01]} 38. Nd4 {[%emt 0:01:18]} Qa8 {[%emt 0:00:21]} 39. Qe3 {[%emt 0:03:49]} Ncd7 {[%emt 0:01:59]} 40. Bd6 {[%emt 0:00:00]} Qa2 {[%emt 0:00:00]} 41. Bd3 {[%emt 0:06:09]} e5 {[%emt 0:06:58]} 42. Nb5 {[%emt 0:00:45]} e4 {[%emt 0:03:42]} 43. Qe2 {[%emt 0:00:19]} Qxe2 {[%emt 0:05:40]} 44. Bxe2 {[%emt 0:02:12]} Rc8 {[%emt 0:01:51]} 45. Na7 {[%emt 0:02:53]} Ra8 {[%emt 0:00:55]} 46. Rb7 {[%emt 0:00:22]} Bf8 {[%emt 0:02:08]} 47. Bxf8 Kxf8 {[%emt 0:00:32]} 48. Rc7 {[%emt 0:01:57]} Ke8 {[%emt 0:02:09]} 49. Rc8+ {[%emt 0:06:26]} Rxc8 {[%emt 0:00:25]} 50. Nxc8 {[%emt 0:00:01]} Kd8 {[%emt 0:01:35]} 51. Nd6 {[%emt 0:00:20]} Ke7 {[%emt 0:00:15]} 52. Nb7 {[%emt 0:00:09]} Ne5 {[%emt 0:02:35]} 53. c5 {[%emt 0:00:30]} Kd7 {[%emt 0:01:23]} 54. Bb5+ {[%emt 0:00:32]} Kc7 {[%emt 0:00:30]} 55. Nd6 {[%emt 0:00:42]} Nfd7 {[%emt 0:01:56]} 56. Nxe4 {[%emt 0:01:13]} f5 {[%emt 0:00:55]} 57. f4 {[%emt 0:02:19]} fxe4 {[%emt 0:01:08]} 58. fxe5 {[%emt 0:00:01]} Nxe5 {[%emt 0:01:07]} 59. Kf2 {[%emt 0:01:16]} Nd3+ {[%emt 0:03:33]} 60. Ke3 {[%emt 0:00:30]} Nxc5 {[%emt 0:00:43]} 61. Be8 {[%emt 0:00:20]} g5 {[%emt 0:00:37]} 62. Bg6 {[%emt 0:00:03]} Kd6 {[%emt 0:00:29]} 63. Bxe4 {[%emt 0:00:12]} Ke5 {[%emt 0:00:54]} 64. Bf3 {[%emt 0:01:10]} Ne6 {[%emt 0:00:45]} 1/2-1/2

[Event "ESCC-65 2022"]
[Site "Lublin"]
[Date "2022.07.08"]
[Round "4.16"]
[White "Gromowski, Stanislaw"]
[Black "Plesiuk, Jan"]
[Result "1-0"]
[ECO "B50"]
[WhiteElo "1613"]
[BlackElo "1573"]
[Annotator "NA RC"]
[PlyCount "89"]
[EventDate "2022.07.05"]
[EventType "swiss"]
[EventCountry "POL"]
[SourceTitle "playchess.com"]
[Source "ChessBase"]
[SourceQuality "1"]
[TimeControl "40/5400+30:1800+30"]

1. e4 {[%emt 0:00:08]} c5 {[%emt 0:00:12]} 2. Nf3 {[%emt 0:00:11]} d6 {[%emt 0:00:10]} 3. Bc4 {[%emt 0:00:17]} e6 {[%emt 0:00:51]} 4. c3 {[%emt 0:00:24]} Nf6 {[%emt 0:00:19]} 5. d3 {[%emt 0:00:09]} Nc6 {[%emt 0:00:46]} 6. O-O {[%emt 0:00:32]} Be7 {[%emt 0:00:19]} 7. Re1 {[%emt 0:00:14]} e5 {[%emt 0:01:26]} 8. Nbd2 {[%emt 0:03:37]} O-O {[%emt 0:00:35]} 9. Nf1 {[%emt 0:00:12]} Na5 {[%emt 0:04:25]} 10. Bb5 {[%emt 0:00:26]} a6 {[%emt 0:00:56]} 11. Ba4 {[%emt 0:00:12]} b5 {[%emt 0:00:16]} 12. Bc2 {[%emt 0:00:08]} Nc6 {[%emt 0:00:43]} 13. Ng3 {[%emt 0:00:19]} Ne8 {[%emt 0:11:44]} 14. h3 {[%emt 0:00:48]} g6 {[%emt 0:01:36]} 15. Bh6 {[%emt 0:01:40]} Ng7 {[%emt 0:00:02]} 16. Qd2 {[%emt 0:01:44]} a5 {[%emt 0:19:56]} 17. a3 {[%emt 0:00:58]} Qb6 {[%emt 0:00:54]} 18. Red1 {[%emt 0:03:59]} Rd8 {[%emt 0:02:01]} 19. Qe3 {[%emt 0:07:12]} Rb8 {[%emt 0:02:18]} 20. Rab1 {[%emt 0:01:23]} b4 {[%emt 0:00:25]} 21. axb4 {[%emt 0:01:22]} axb4 {[%emt 0:00:06]} 22. d4 {[%emt 0:03:03]} b3 {[%emt 0:00:56]} 23. Bd3 {[%emt 0:00:55]} cxd4 {[%emt 0:02:03]} 24. cxd4 {[%emt 0:00:13]} exd4 {[%emt 0:01:29]} 25. Qd2 {[%emt 0:02:23]} Ne6 {[%emt 0:00:44]} 26. Bc4 {[%emt 0:01:20]} Bf6 {[%emt 0:03:50]} 27. Bd5 {[%emt 0:01:24]} Ne5 {[%emt 0:04:08]} 28. Ne1 {[%emt 0:03:29]} Ba6 {[%emt 0:02:38]} 29. Kh2 {[%emt 0:01:42]} Qb4 {[%emt 0:02:40]} 30. f4 {[%emt 0:03:42]} Nd7 {[%emt 0:03:21]} 31. Qf2 {[%emt 0:02:38]} Nc7 {[%emt 0:01:39]} 32. Bc6 {[%emt 0:03:04]} Nc5 {[%emt 0:03:14]} 33. f5 {[%emt 0:01:28]} Be5 {[%emt 0:06:18]} 34. fxg6 {[%emt 0:01:05]} hxg6 {[%emt 0:00:10]} 35. Kh1 {[%emt 0:01:53]} Rb6 {[%emt 0:00:35]} 36. Bd5 {[%emt 0:02:59]} Nxd5 {[%emt 0:07:19]} 37. exd5 {[%emt 0:00:26]} Bc4 {[%emt 0:04:05]} 38. Qf3 {[%emt 0:01:05]} Bxg3 {[%emt 0:01:58]} 39. Qxg3 {[%emt 0:00:36]} Bxd5 {[%emt 0:00:06]} 40. Qg5 {[%emt 0:00:00]} Kh7 {[%emt 0:00:00]} 41. Qxd8 Kxh6 {[%emt 0:01:12]} 42. Qh8+ {[%emt 0:08:33]} Kg5 {[%emt 0:00:02]} 43. Rxd4 {[%emt 0:01:11]} Bc4 {[%emt 0:03:55]} 44. Qh4+ {[%emt 0:01:11]} Kf5 {[%emt 0:00:04]} 45. Rxc4 {[%emt 0:00:46]} 1-0

[Event "ESCC-65 2022"]
[Site "Lublin"]
[Date "2022.07.09"]
[Round "5.1"]
[White "Petran, Peter"]
[Black "Dobosz, Henryk"]
[Result "1-0"]
[ECO "A06"]
[WhiteElo "2234"]
[BlackElo "2354"]
[Annotator "RC"]
[PlyCount "75"]
[EventDate "2022.07.05"]
[EventType "swiss"]
[EventCountry "POL"]
[SourceTitle "playchess.com"]
[Source "ChessBase"]
[SourceQuality "1"]
[TimeControl "40/5400+30:1800+30"]

1. g3 {[%emt 0:00:06]} d5 {[%emt 0:01:09]} 2. Nf3 {[%emt 0:00:35]} Bg4 {[%emt 0:02:27]} 3. Bg2 {[%emt 0:00:07]} Nd7 {[%emt 0:00:07]} 4. h3 {[%emt 0:00:23]} Bh5 {[%emt 0:00:15]} 5. O-O {[%emt 0:01:47]} c6 {[%emt 0:06:45]} 6. d3 {[%emt 0:02:28]} e5 {[%emt 0:00:30]} 7. Nbd2 {[%emt 0:00:08]} Ngf6 {[%emt 0:00:47]} 8. e4 {[%emt 0:00:29]} dxe4 {[%emt 0:03:51]} 9. dxe4 {[%emt 0:00:35]} Bc5 {[%emt 0:00:13]} 10. c3 {[%emt 0:01:18]} a5 {[%emt 0:00:18]} 11. Qc2 {[%emt 0:00:25]} O-O {[%emt 0:06:33]} 12. Rb1 {[%emt 0:01:52]} a4 {[%emt 0:09:45]} 13. b4 {[%emt 0:02:36]} axb3 {[%emt 0:00:07]} 14. axb3 {[%emt 0:00:04]} Re8 {[%emt 0:03:41]} 15. b4 {[%emt 0:00:31]} Bf8 {[%emt 0:01:16]} 16. Re1 {[%emt 0:00:15]} Bxf3 {[%emt 0:06:25]} 17. Bxf3 {[%emt 0:00:49]} b5 {[%emt 0:02:00]} 18. c4 {[%emt 0:03:22]} Ra4 {[%emt 0:02:51]} 19. c5 {[%emt 0:01:27]} g6 {[%emt 0:02:26]} 20. Qc3 {[%emt 0:03:09]} Bg7 {[%emt 0:02:48]} 21. Bd1 {[%emt 0:01:21]} Ra8 {[%emt 0:05:52]} 22. Nf3 {[%emt 0:01:33]} Qc7 {[%emt 0:00:25]} 23. Bb3 {[%emt 0:00:21]} Re7 {[%emt 0:03:10]} 24. Ra1 {[%emt 0:04:32]} Rxa1 {[%emt 0:05:00]} 25. Qxa1 {[%emt 0:00:13]} Nf8 {[%emt 0:00:11]} 26. Bb2 {[%emt 0:02:28]} Ne8 {[%emt 0:01:34]} 27. Rd1 {[%emt 0:04:06]} h6 {[%emt 0:04:42]} 28. h4 {[%emt 0:03:58]} Kh7 {[%emt 0:02:00]} 29. h5 {[%emt 0:07:03]} Bf6 {[%emt 0:01:47]} 30. hxg6+ {[%emt 0:01:18]} fxg6 {[%emt 0:02:20]} 31. Kg2 {[%emt 0:01:01]} Kg7 {[%emt 0:02:06]} 32. Qa8 {[%emt 0:11:33]} Ne6 {[%emt 0:00:39]} 33. Bxe6 {[%emt 0:11:14]} Rxe6 {[%emt 0:00:08]} 34. Ra1 {[%emt 0:00:03]} Kf8 {[%emt 0:03:31]} 35. Ra7 {[%emt 0:00:55]} Qd8 {[%emt 0:00:06]} 36. Qxd8 {[%emt 0:00:32]} Bxd8 {[%emt 0:00:07]} 37. Nxe5 {[%emt 0:00:47]} Bc7 {[%emt 0:00:21]} 38. f4 {[%emt 0:00:41]} 1-0